bitfinex/quotes_BTCUSD_20251120
["timestamp","ask_amount","ask_price","bid_price","bid_amount"]
[1763600531569,0.64717412,91983.0,91982.0,0.00023177]
[1763600531807,0.64817412,91983.0,91982.0,0.00023177]
[1763600532170,0.65833597,91983.0,91982.0,0.00023177]
[1763600532840,2.65833597,91983.0,91982.0,0.00023177]
[1763600534267,2.65835702,91983.0,91982.0,0.00023177]
[1763600534442,2.67541269,91983.0,91982.0,0.00023177]
[1763600535312,2.69885062,91983.0,91982.0,0.00023177]
[1763600536144,0.07785249,91952.0,91951.0,0.04934077]
[1763600536533,0.06229249,91952.0,91951.0,0.04934077]
[1763600536768,0.01019,91952.0,91951.0,0.04934077]
[1763600537335,0.0102543,91952.0,91951.0,0.04934077]
[1763600537774,6.43e-05,91952.0,91951.0,0.04934077]
[1763600538150,6.43e-05,91952.0,91951.0,0.15963327]
[1763600538941,6.43e-05,91952.0,91951.0,0.04934077]
[1763600540441,0.54050715,91951.0,91950.0,0.0002]
[1763600540656,0.56782715,91951.0,91950.0,0.0002]
[1763600540858,0.6124417,91951.0,91950.0,0.0002]
[1763600541691,0.66454419,91951.0,91950.0,0.0002]
[1763600543126,0.2175308,91941.0,91940.0,0.0002]
[1763600543356,0.2448508,91941.0,91940.0,0.0002]
[1763600543523,0.2690908,91941.0,91940.0,0.0002]
[1763600544572,0.64419329,91941.0,91940.0,0.0012]
[1763600544774,0.6645813,91941.0,91940.0,0.0012]
[1763600544982,0.69726686,91941.0,91940.0,0.0012]
[1763600545604,0.7074587,91941.0,91940.0,0.0012]
[1763600545806,0.7074587,91941.0,91940.0,0.0002]
[1763600547659,0.72451833,91941.0,91940.0,0.0002]
[1763600547859,0.72451833,91941.0,91940.0,0.00141743]
[1763600549420,0.71432649,91941.0,91940.0,0.00141743]
[1763600550728,0.69393848,91941.0,91940.0,0.00141743]
[1763600550941,0.71427844,91941.0,91940.0,0.00141743]
[1763600551152,0.69761848,91941.0,91940.0,0.00141743]
[1763600551394,0.71795656,91941.0,91940.0,0.00141743]
[1763600551567,0.69761848,91941.0,91940.0,0.00141743]
[1763600552187,0.71795656,91941.0,91940.0,0.00141743]
[1763600553188,0.69761848,91941.0,91940.0,0.00141743]
[1763600557722,0.68055885,91941.0,91940.0,0.00141743]
[1763600563966,0.67687885,91941.0,91940.0,0.00141743]
[1763600564118,0.42666249,91941.0,91940.0,0.00141743]
[1763600564318,0.02732,91941.0,91940.0,0.2189506]
[1763600564721,0.07942249,91941.0,91940.0,0.2189506]
[1763600564919,0.02732,91941.0,91940.0,0.2189506]
[1763600565486,0.05210249,91944.0,91943.0,0.2175255]
[1763600566299,0.01176,91951.0,91950.0,0.21750951]
[1763600566998,6.43e-05,91952.0,91951.0,0.21750715]
[1763600567167,6.43e-05,91952.0,91948.0,0.01087571]
[1763600567371,6.43e-05,91952.0,91951.0,0.21750715]
[1763600567917,6.43e-05,91952.0,91947.0,0.01087583]
[1763600568122,6.43e-05,91952.0,91951.0,0.21750715]
[1763600570107,0.02043232,91952.0,91951.0,0.21750715]
[1763600573664,0.323,91951.0,91947.0,0.22839214]
[1763600573863,0.02036802,91950.0,91947.0,0.01087583]
[1763600574090,0.02036802,91950.0,91949.0,0.21751188]
[1763600574849,6.43e-05,91952.0,91951.0,0.21750715]
[1763600575045,0.0204506,91952.0,91951.0,0.21750715]
[1763600575250,0.3434506,91952.0,91950.0,0.21750929]
[1763600575446,0.0203863,91951.0,91950.0,0.21750929]
[1763600575858,0.0203863,91951.0,91949.0,0.22838747]
[1763600576055,0.0203863,91950.0,91949.0,0.22838747]
[1763600578994,0.0203863,91950.0,91949.0,0.01087559]
[1763600579197,0.0203863,91950.0,91949.0,0.25013865]
[1763600579509,0.0203863,91950.0,91949.0,0.22838747]
[1763600579932,0.3230643,91952.0,91951.0,0.21750715]
[1763600580074,0.02044946,91952.0,91951.0,0.32799786]
[1763600580277,6.43e-05,91952.0,91951.0,0.30992715]
[1763600580478,6.43e-05,91952.0,91951.0,0.25992715]
[1763600580676,6.43e-05,91952.0,91951.0,0.28729715]
[1763600580883,6.43e-05,91952.0,91951.0,0.23729715]
[1763600581083,6.43e-05,91952.0,91951.0,0.33167786]
[1763600581283,6.43e-05,91952.0,91951.0,0.30992715]
[1763600582337,6.43e-05,91952.0,91951.0,0.25992715]
[1763600582555,6.43e-05,91952.0,91951.0,0.30992715]
[1763600582901,6.43e-05,91952.0,91951.0,0.31092715]
[1763600583868,6.43e-05,91952.0,91951.0,0.30992715]
[1763600584075,6.43e-05,91952.0,91951.0,0.45732715]
[1763600584275,6.43e-05,91952.0,91951.0,0.31192715]
[1763600584683,6.43e-05,91952.0,91951.0,0.34459267]
[1763600586032,0.323,91993.0,91992.0,0.2174102]
[1763600586227,0.01163,91994.0,91992.0,0.2174102]
[1763600586548,0.01163,91994.0,91993.0,0.1102925]
[1763600587378,0.34550003,91996.0,91993.0,0.1102925]
[1763600587503,0.33463,91996.0,91994.0,0.21740507]
[1763600587859,0.33463,91996.0,91993.0,0.1102925]
[1763600588021,0.21740405,91995.0,91993.0,0.1102925]
[1763600588222,0.21741291,91992.0,91982.0,0.00368]
[1763600588439,0.01087086,91989.0,91985.0,0.01132]
[1763600588647,0.01087098,91988.0,91985.0,0.01132]
[1763600589096,0.22828397,91991.0,91986.0,0.2282943]
[1763600589298,0.02487,92002.0,91995.0,0.21740311]
[1763600589447,0.21741037,91992.0,91987.0,0.21742118]
[1763600589649,0.22828088,91992.0,91988.0,0.01087098]
[1763600590037,0.01087051,91992.0,91988.0,0.01087098]
[1763600590235,0.01087003,91996.0,91993.0,0.22827738]
[1763600590460,0.55127092,91996.0,91995.0,0.1102925]
[1763600590664,0.57614092,91996.0,91995.0,0.1102925]
[1763600590873,0.59147092,91996.0,91995.0,0.1102925]
[1763600591089,0.3632,91996.0,91995.0,0.1102925]
[1763600591305,0.58060075,91996.0,91995.0,0.1102925]
[1763600591529,0.3632,91996.0,91995.0,0.1102925]
[1763600591739,0.3632,91996.0,91988.0,0.01087098]
[1763600591740,0.2174103,91992.0,91988.0,0.2282904]
[1763600591953,0.22827771,91994.0,91990.0,0.01087074]
[1763600592177,0.22827771,91994.0,91993.0,0.1102925]
[1763600593068,0.01087027,91994.0,91993.0,0.1102925]
[1763600593281,0.22827575,91994.0,91993.0,0.1102925]
[1763600594348,0.56527539,91996.0,91993.0,0.1102925]
[1763600594349,0.21740321,91995.0,91993.0,0.1102925]
[1763600594574,0.23273548,91994.0,91993.0,0.1102925]
[1763600594805,0.21748113,91962.0,91961.0,0.1216125]
[1763600595027,0.21749517,91957.0,91952.0,0.01132]
[1763600595241,0.01087452,91958.0,91952.0,0.01132]
[1763600595242,0.01163,91953.0,91952.0,0.21792762]
[1763600595494,0.01163,91953.0,91952.0,0.00410284]
[1763600595665,0.01163,91953.0,91952.0,0.21792762]
[1763600595813,0.01163,91953.0,91952.0,0.22160762]
[1763600596009,0.02487,91960.0,91959.0,0.21748822]
[1763600596211,0.22833885,91969.0,91965.0,0.22834716]
[1763600596413,0.05210249,91970.0,91966.0,0.01087358]
[1763600596753,0.05210249,91970.0,91960.0,0.21748573]
[1763600596754,0.21747876,91963.0,91949.0,0.01087559]
[1763600596955,0.02696,91959.0,91952.0,0.02217331]
[1763600597156,0.21749565,91956.0,91955.0,0.1102925]
[1763600597359,0.05183,91959.0,91956.0,0.01087476]
[1763600597560,0.0365,91959.0,91955.0,0.12116738]
[1763600597785,0.2174906,91958.0,91955.0,0.33866053]
[1763600598162,0.0365,91959.0,91957.0,0.21749295]
[1763600598366,0.01163,91959.0,91957.0,0.21749259]
[1763600598567,0.01533,91958.0,91957.0,0.21749259]
[1763600599881,0.13666654,92063.0,91964.0,0.01087382]
[1763600599882,0.05210249,91968.0,91964.0,0.01087382]
[1763600600064,0.323,91969.0,91958.0,0.01087452]
[1763600600065,0.01087393,91963.0,91958.0,0.01087452]
[1763600600264,0.02696,91959.0,91957.0,0.01087464]
[1763600600463,0.02696,91959.0,91957.0,0.22836672]
[1763600600879,0.02696,91959.0,91957.0,0.01087464]
[1763600601066,0.02696,91959.0,91956.0,0.01087476]
[1763600601267,0.01163,91959.0,91958.0,0.21749059]
[1763600601468,0.55135737,91962.0,91958.0,0.22836511]
[1763600601880,0.01087405,91962.0,91959.0,0.22836157]
[1763600602127,0.33387393,91963.0,91960.0,0.21748558]
[1763600602359,0.33387393,91963.0,91959.0,0.01087441]
[1763600602360,0.21748158,91962.0,91959.0,0.01087441]
[1763600602541,0.21749313,91957.0,91955.0,0.1102925]
[1763600602747,0.01533,91959.0,91955.0,0.1102925]
[1763600602948,0.22836036,91960.0,91955.0,0.1102925]
[1763600603151,0.01087441,91959.0,91955.0,0.33866291]
[1763600603324,0.01087441,91959.0,91956.0,0.21749465]
[1763600603529,0.01087441,91959.0,91956.0,0.22836941]
[1763600604101,0.55135388,91963.0,91956.0,0.22836941]
[1763600604102,0.323,91963.0,91960.0,0.21748557]
[1763600604349,0.01087192,91980.0,91971.0,0.22833238]
[1763600604552,0.0724121,91979.0,91976.0,0.22832042]
[1763600604932,0.0724121,91979.0,91972.0,0.15423111]
[1763600604933,0.323,91976.0,91972.0,0.33906984]
[1763600605108,0.05210249,91980.0,91976.0,0.2283204]
[1763600605288,0.05210249,91980.0,91977.0,0.22831675]
[1763600605490,0.07697249,91980.0,91978.0,0.2174433]
[1763600605669,0.01163,91981.0,91979.0,0.21744093]
[1763600605872,0.02031428,91980.0,91979.0,0.21744093]
[1763600606516,0.02131428,91980.0,91979.0,0.21744093]
[1763600606838,0.001,91980.0,91979.0,0.21744093]
[1763600607369,0.001,91980.0,91979.0,0.23349093]
[1763600607719,0.03880686,91990.0,91989.0,0.21741729]
[1763600607936,0.03195612,91990.0,91987.0,0.0108711]
[1763600608154,0.01087121,91986.0,91970.0,0.02263]
[1763600608350,0.01087204,91979.0,91975.0,0.01087251]
[1763600608553,0.33387181,91981.0,91977.0,0.01087228]
[1763600608759,0.01087192,91980.0,91976.0,0.22832023]
[1763600609060,0.21744133,91979.0,91977.0,0.00042284]
[1763600609437,0.2174433,91978.0,91977.0,0.00042284]
[1763600609638,0.2413433,91978.0,91977.0,0.00410284]
[1763600609838,0.2575133,91978.0,91977.0,0.00410284]
[1763600610020,0.01617,91978.0,91977.0,0.2215485]
[1763600612457,0.323,91983.0,91977.0,0.00410284]
[1763600612659,0.323,91983.0,91982.0,0.22875384]
[1763600612882,0.38108266,91995.0,91989.0,0.21741729]
[1763600613095,0.323,91991.0,91987.0,0.0108711]
[1763600613354,0.03197683,91990.0,91987.0,0.0108711]
[1763600613586,0.01163,91990.0,91989.0,0.21504246]
[1763600613793,0.33463,91990.0,91986.0,0.1102925]
[1763600614005,0.02034674,91989.0,91988.0,0.21741946]
[1763600614215,0.02034674,91989.0,91988.0,0.21741966]
[1763600614657,0.02034674,91989.0,91987.0,0.22828861]
[1763600614879,0.01163,91990.0,91989.0,0.21741729]
[1763600615314,0.05210249,91994.0,91993.0,0.21740784]
[1763600615558,0.01224,91995.0,91994.0,0.21740548]
[1763600615844,0.323,92000.0,91999.0,0.21739366]
[1763600616065,0.34334389,92000.0,91999.0,0.21739366]
[1763600616295,0.02034389,92000.0,91999.0,0.21739366]
[1763600616511,0.02034389,92000.0,91997.0,0.22826606]
[1763600616722,0.21741212,91992.0,91987.0,0.0108711]
[1763600616962,0.02736015,91995.0,91990.0,0.01087074]
[1763600617130,0.323,91996.0,91993.0,0.01087039]
[1763600617285,0.00046774,91994.0,91993.0,0.22827812]
[1763600618078,0.32346774,91994.0,91993.0,0.22827812]
[1763600618294,0.00046774,91994.0,91993.0,0.22827812]
[1763600622539,0.01695774,91994.0,91993.0,0.22827812]
[1763600623347,0.35082801,91994.0,91984.0,0.21742864]
[1763600623515,0.02736051,91992.0,91987.0,0.0108711]
[1763600623945,0.00046774,91990.0,91987.0,0.0108711]
[1763600624125,0.00046774,91990.0,91987.0,0.32771431]
[1763600624325,0.00046774,91990.0,91972.0,0.09386365]
[1763600624326,0.01087086,91989.0,91972.0,0.09386365]
[1763600624522,0.01087169,91982.0,91975.0,0.01087251]
[1763600624764,0.21743485,91982.0,91978.0,0.01087216]
[1763600624920,0.22831021,91981.0,91978.0,0.01087216]
[1763600625116,0.22831021,91981.0,91978.0,0.01040442]
[1763600625117,0.02842,91979.0,91978.0,0.01040442]
[1763600625316,0.02842,91979.0,91978.0,0.22784772]
[1763600626514,0.02842,91979.0,91978.0,0.01040442]
[1763600626714,0.02842,91979.0,91978.0,0.22784772]
[1763600627590,0.02842,91979.0,91977.0,0.00368]
[1763600627934,0.02842,91979.0,91977.0,0.22112362]
[1763600628279,0.02842,91979.0,91978.0,0.2174433]
[1763600628662,0.02842,91979.0,91977.0,0.22112362]
[1763600629062,0.24586115,91979.0,91977.0,0.22112362]
[1763600629385,0.02842,91979.0,91978.0,0.2174433]
[1763600629736,0.01193,91979.0,91978.0,0.2174433]
[1763600629936,0.323,91984.0,91983.0,0.26743148]
[1763600630137,0.323,91984.0,91983.0,0.26443148]
[1763600630338,0.323,91984.0,91983.0,0.21443148]
[1763600630578,0.01087121,91986.0,91983.0,0.22530305]
[1763600630962,0.01087157,91983.0,91978.0,0.01087216]
[1763600631134,0.01193,91982.0,91978.0,0.01087216]
[1763600631280,0.01193,91982.0,91979.0,0.01087204]
[1763600631492,0.2174371,91981.0,91977.0,0.23199592]
[1763600631733,0.21743857,91980.0,91977.0,0.00368]
[1763600631939,0.2174433,91978.0,91977.0,0.00368]
[1763600632661,0.2339333,91978.0,91977.0,0.00368]
[1763600632896,0.2580333,91978.0,91976.0,0.00368]
[1763600633016,0.0241,91977.0,91976.0,0.00368]
[1763600633212,0.01649,91977.0,91976.0,0.00368]
[1763600633669,0.01649,91977.0,91976.0,0.22112802]
[1763600633873,0.03603,91982.0,91981.0,0.2174362]
[1763600634186,0.05252,91982.0,91981.0,0.2174362]
[1763600634385,0.05252,91982.0,91976.0,0.0145524]
[1763600634386,0.323,91977.0,91976.0,0.00368]
[1763600634579,0.33949,91977.0,91976.0,0.00368]
[1763600635374,0.3471,91981.0,91978.0,0.21744174]
[1763600635586,0.323,91979.0,91978.0,0.2174433]
[1763600635911,0.33949,91979.0,91978.0,0.2174433]
[1763600636661,0.01649,91979.0,91978.0,0.2174433]
[1763600637127,0.01649,91979.0,91976.0,0.22112794]
[1763600637309,0.01087251,91975.0,91972.0,0.31132015]
[1763600637627,0.02842,91973.0,91972.0,0.09386365]
[1763600637802,0.24587512,91973.0,91972.0,0.09754365]
[1763600638010,0.01087311,91970.0,91969.0,0.1102925]
[1763600638220,0.01087311,91970.0,91941.0,0.1102925]
[1763600638221,0.01087417,91961.0,91953.0,0.01087512]
[1763600638432,0.02842,91958.0,91955.0,0.12116738]
[1763600638639,0.24591059,91958.0,91957.0,2.00368]
[1763600638812,0.01193,91964.0,91961.0,0.01087417]
[1763600639036,0.01193,91964.0,91963.0,0.21747876]
[1763600639387,0.02884306,91964.0,91962.0,0.21748098]
[1763600639700,0.02884306,91964.0,91962.0,0.02174811]
[1763600639701,0.01649,91963.0,91962.0,0.02174811]
[1763600639923,0.01649,91963.0,91960.0,0.01087429]
[1763600640084,0.01649,91961.0,91959.0,0.22836104]
[1763600640297,0.04059,91960.0,91959.0,0.22836104]
[1763600640747,0.05146429,91960.0,91957.0,2.00368]
[1763600640917,0.01649,91958.0,91957.0,2.00368]
[1763600641326,0.04059,91958.0,91957.0,2.22117295]
[1763600641725,0.01649,91958.0,91957.0,2.22117295]
[1763600641939,0.21748591,91960.0,91957.0,2.22117295]
[1763600642140,0.01087393,91963.0,91959.0,0.22836263]
[1763600642383,0.01561,91960.0,91959.0,0.22836263]
[1763600642676,0.01561,91960.0,91959.0,0.22936263]
[1763600642900,0.03976,91960.0,91958.0,0.21748611]
[1763600643056,0.01561,91959.0,91958.0,0.21748611]
[1763600643261,0.01561,91959.0,91957.0,2.001]
[1763600643262,0.03976,91959.0,91957.0,2.001]
[1763600643460,0.01561,91958.0,91957.0,2.0]
[1763600643660,0.01561,91958.0,91957.0,2.21749295]
[1763600643661,0.03976,91958.0,91957.0,2.21749295]
[1763600644029,0.03976,91958.0,91957.0,2.21798565]
[1763600644437,0.03976,91958.0,91957.0,2.0004927]
[1763600645458,0.03976,91958.0,91957.0,2.21798565]
[1763600645661,0.01561,91958.0,91957.0,2.21798565]
[1763600648562,0.03976,91958.0,91957.0,2.0004927]
[1763600649168,0.25725059,91958.0,91957.0,2.0004927]
[1763600649657,0.03976,91958.0,91957.0,2.0004927]
[1763600649824,0.03976,91958.0,91957.0,2.21798565]
[1763600650486,0.01561,91958.0,91957.0,2.21798565]
[1763600650829,0.01561,91958.0,91957.0,2.26798565]
[1763600651076,0.01561,91958.0,91957.0,2.21798565]
[1763600651282,0.33535306,91964.0,91957.0,2.21798565]
[1763600651283,0.33535306,91964.0,91963.0,0.21747876]
[1763600651690,0.01235306,91964.0,91962.0,0.21748113]
[1763600651909,0.36276,91963.0,91961.0,0.22835543]
[1763600652132,0.01561,91962.0,91961.0,0.22835543]
[1763600652527,0.03976,91962.0,91961.0,0.22835543]
[1763600652764,0.03976,91962.0,91957.0,2.22836695]
[1763600652765,0.01087429,91960.0,91957.0,2.21749293]
[1763600652920,0.02415,91959.0,91958.0,0.1102925]
[1763600653296,0.03976,91959.0,91958.0,0.32778309]
[1763600655525,0.323,91963.0,91962.0,0.21748113]
[1763600655742,0.00042306,91964.0,91963.0,0.21747876]
[1763600655963,0.00042306,91964.0,91963.0,0.22115876]
[1763600656200,0.00042306,91964.0,91963.0,0.27115876]
[1763600656839,0.00042306,91964.0,91963.0,0.27147754]
[1763600657280,0.00042306,91964.0,91963.0,0.27247754]
[1763600657760,0.00042306,91964.0,91963.0,0.22247754]
[1763600657967,0.00042306,91964.0,91963.0,0.27247754]
[1763600659864,0.00042306,91964.0,91963.0,0.22247754]
[1763600660179,0.00042306,91964.0,91963.0,0.21879754]
[1763600660387,0.00042306,91964.0,91963.0,0.27247754]
[1763600660720,0.00042306,91964.0,91963.0,0.22247754]
[1763600660923,0.00042306,91964.0,91963.0,0.27247754]
[1763600661353,0.00042306,91964.0,91963.0,0.22247754]
[1763600661561,0.00042306,91964.0,91963.0,0.29422541]
[1763600661814,0.00042306,91964.0,91963.0,0.22247754]
[1763600661993,0.00042306,91964.0,91963.0,0.29322541]
[1763600662191,0.00042306,91964.0,91963.0,0.27247754]
[1763600666120,0.00042306,91964.0,91963.0,0.41987754]
[1763600668028,0.00042306,91964.0,91963.0,0.00031878]
[1763600668202,0.01683306,91964.0,91963.0,0.00131878]
[1763600668405,0.31072195,91964.0,91963.0,0.00131878]
[1763600668626,0.63372195,91964.0,91963.0,0.00131878]
[1763600669028,0.63372195,91964.0,91963.0,0.00031878]
[1763600669411,0.63372195,91964.0,91963.0,0.00131878]
[1763600669617,0.41624555,91964.0,91963.0,0.00031878]
[1763600670040,0.63372195,91964.0,91963.0,0.00031878]
[1763600670245,0.41624555,91964.0,91963.0,0.00031878]
[1763600670447,0.00042306,91964.0,91963.0,0.02206665]
[1763600670645,0.00042306,91964.0,91963.0,0.00031878]
[1763600671944,0.03898306,91964.0,91963.0,0.00031878]
[1763600673770,0.01564306,91964.0,91963.0,0.00031878]
[1763600674740,0.00042306,91964.0,91963.0,0.00031878]
[1763600675142,0.00042306,91964.0,91963.0,0.05031878]
[1763600675576,0.00042306,91964.0,91963.0,0.07071905]
[1763600675791,0.00042306,91964.0,91963.0,0.02071905]
[1763600675940,0.00042306,91964.0,91963.0,0.07071905]
[1763600677547,0.00042306,91964.0,91963.0,0.02071905]
[1763600677755,0.00042306,91964.0,91963.0,0.07071905]
[1763600677987,0.00042306,91964.0,91963.0,0.02071905]
[1763600678177,0.00042306,91964.0,91963.0,0.07071905]
[1763600678550,0.00042306,91964.0,91963.0,0.02071905]
[1763600678990,0.00042306,91964.0,91963.0,0.07071905]
[1763600679190,0.00042306,91964.0,91963.0,0.21811905]
[1763600679553,0.00042306,91964.0,91963.0,0.16811905]
[1763600679776,0.00042306,91964.0,91963.0,0.21811905]
[1763600679955,0.00042306,91964.0,91963.0,0.43559781]
[1763600680157,0.00042306,91964.0,91963.0,0.36519754]
[1763600680584,0.00042306,91964.0,91963.0,0.41519754]
[1763600681145,0.00042306,91964.0,91963.0,0.36519754]
[1763600684869,0.01564306,91964.0,91963.0,0.36519754]
[1763600685071,0.03898306,91964.0,91963.0,0.21779754]
[1763600685395,0.01564306,91964.0,91963.0,0.21779754]
[1763600685640,0.01564306,91964.0,91963.0,0.00031878]
[1763600685845,0.01564306,91964.0,91963.0,0.21779754]
[1763600686205,0.00042306,91964.0,91963.0,0.21779754]
[1763600686441,0.00042306,91964.0,91963.0,0.28954541]
[1763600686597,0.00042306,91964.0,91963.0,0.21779754]
[1763600686793,0.00042306,91964.0,91963.0,0.23954541]
[1763600687595,0.00042306,91964.0,91963.0,0.27951688]
[1763600687800,0.00042306,91964.0,91963.0,0.26779754]
[1763600688245,0.00042306,91964.0,91963.0,0.21779754]
[1763600688459,0.00042306,91964.0,91963.0,0.23954541]
[1763600689429,0.00042306,91964.0,91963.0,0.28954541]
[1763600689598,0.00042306,91964.0,91963.0,0.21779754]
[1763600689802,0.00042306,91964.0,91963.0,0.2298575]
[1763600690241,0.00042306,91964.0,91963.0,0.2798575]
[1763600690448,0.00042306,91964.0,91963.0,0.26779754]
[1763600690853,0.00042306,91964.0,91963.0,0.21779754]
[1763600691052,0.00042306,91964.0,91963.0,0.43694541]
[1763600691308,0.00042306,91964.0,91963.0,0.41519754]
[1763600691759,0.00042306,91964.0,91963.0,0.36519754]
[1763600693147,0.00042306,91964.0,91963.0,0.41519754]
[1763600693420,0.00042306,91964.0,91963.0,0.36619754]
[1763600693703,0.00042306,91964.0,91963.0,0.36519754]
[1763600693906,0.00042306,91964.0,91963.0,0.41519754]
[1763600694088,0.00042306,91964.0,91963.0,0.36619754]
[1763600694873,0.00042306,91964.0,91963.0,0.41619754]
[1763600696202,0.00042306,91964.0,91963.0,0.36987754]
[1763600696996,0.00042306,91964.0,91963.0,0.22247754]
[1763600697234,0.00042306,91964.0,91963.0,0.22147754]
[1763600700879,0.00042306,91964.0,91963.0,0.00399878]
[1763600701084,0.00042306,91964.0,91963.0,0.22147754]
[1763600701883,0.00042306,91964.0,91963.0,0.27147754]
[1763600702669,0.00042306,91964.0,91963.0,0.22147754]
[1763600702876,0.00042306,91964.0,91963.0,0.41887754]
[1763600703262,0.00042306,91964.0,91963.0,0.41987754]
[1763600704062,0.00042306,91964.0,91963.0,0.41887754]
[1763600704265,0.00042306,91964.0,91963.0,0.41987754]
[1763600704934,0.05210249,91996.0,91995.0,0.21740311]
[1763600705137,0.05210249,91996.0,91995.0,0.32769561]
[1763600706092,0.00112328,91997.0,91996.0,0.21740075]
[1763600706627,0.00112328,91997.0,91996.0,0.26740075]
[1763600706834,0.00112328,91997.0,91996.0,0.21740075]
[1763600707055,0.00112328,91997.0,91996.0,0.26740075]
[1763600707429,0.00117847,91997.0,91996.0,0.21740075]
[1763600707832,0.00117847,91997.0,91996.0,0.26740075]
[1763600708035,0.00117847,91997.0,91996.0,0.21740075]
[1763600709198,0.00117847,91997.0,91996.0,0.26740075]
[1763600710179,0.00117847,91997.0,91996.0,0.21740075]
[1763600710475,0.00117847,91997.0,91996.0,0.26740075]
[1763600710774,0.00117847,91997.0,91996.0,0.21740075]
[1763600711280,0.00117847,91997.0,91996.0,0.26740075]
[1763600711805,0.00117847,91997.0,91996.0,0.21740075]
[1763600711928,0.00117847,91997.0,91996.0,0.26740075]
[1763600713850,0.00117847,91997.0,91996.0,0.26840075]
[1763600714738,0.323,92026.0,91996.0,0.26840075]
[1763600714739,0.01147,92036.0,92020.0,0.21734191]
[1763600714917,0.02351,92044.0,92039.0,0.21729918]
[1763600715129,0.0004,92050.0,92039.0,0.21729918]
[1763600715130,0.0004,92050.0,92049.0,0.21727558]
[1763600715331,0.0004552,92050.0,92049.0,0.21727558]
[1763600715531,0.00198938,92050.0,92022.0,0.1102925]
[1763600715740,0.05210249,92049.0,92040.0,0.01086484]
[1763600715946,0.05210249,92049.0,92039.0,0.32759011]
[1763600716091,0.05210249,92047.0,92041.0,0.01086472]
[1763600716293,0.05210249,92047.0,92039.0,0.32758977]
[1763600716294,0.01086425,92045.0,92039.0,0.12115745]
[1763600716498,0.01086436,92044.0,92040.0,0.1102925]
[1763600716703,0.02351,92049.0,92040.0,0.1102925]
[1763600716903,0.22815037,92045.0,92040.0,0.32758734]
[1763600717103,0.01086436,92044.0,92041.0,0.01086472]
[1763600717307,0.01147,92051.0,92047.0,0.21727925]
[1763600717512,0.21727898,92048.0,92046.0,0.00368]
[1763600717706,0.2285968,92050.0,92046.0,0.00368]
[1763600717908,0.01131886,92050.0,92046.0,0.00368]
[1763600718106,0.01131886,92050.0,92047.0,0.01086401]
[1763600718336,0.0004552,92050.0,92049.0,0.21727558]
[1763600718765,0.0004552,92050.0,92049.0,0.26727558]
[1763600719388,0.0004552,92050.0,92049.0,0.21727558]
[1763600719514,0.0004552,92050.0,92049.0,0.26727558]
[1763600719713,0.0004,92080.0,92069.0,0.21722838]
[1763600719908,0.00082273,92070.0,92069.0,0.33120088]
[1763600720155,0.00082273,92070.0,92069.0,0.32752088]
[1763600720387,0.00082273,92070.0,92069.0,0.1139725]
[1763600720808,0.01086259,92059.0,92050.0,0.01086366]
[1763600720940,0.01086189,92065.0,92058.0,0.1102925]
[1763600721142,0.01086153,92068.0,92058.0,0.1102925]
[1763600721143,0.00179453,92059.0,92058.0,0.33840954]
[1763600721832,0.00179453,92059.0,92058.0,0.38840954]
[1763600722408,0.00179453,92059.0,92058.0,0.33840954]
[1763600722608,0.00179453,92059.0,92058.0,0.38840954]
[1763600723031,0.00179453,92059.0,92058.0,0.33940954]
[1763600723240,0.00179453,92059.0,92058.0,0.34308954]
[1763600723839,0.00179453,92059.0,92058.0,0.33840954]
[1763600724172,0.00179453,92059.0,92058.0,0.34208954]
[1763600724374,0.00179453,92059.0,92058.0,0.39208954]
[1763600725820,0.00179453,92059.0,92058.0,0.34208954]
[1763600726029,0.00179453,92059.0,92058.0,0.39208954]
[1763600726343,0.00179453,92059.0,92058.0,0.39308954]
[1763600726735,0.00179453,92059.0,92058.0,0.23279704]
[1763600727146,0.00179453,92059.0,92058.0,0.28279704]
[1763600727870,0.00179453,92059.0,92058.0,0.23279704]
[1763600728724,0.00179453,92059.0,92058.0,0.22911704]
[1763600728856,0.00179453,92059.0,92058.0,0.23279704]
[1763600729056,0.00179453,92059.0,92058.0,0.23179704]
[1763600729481,0.00179453,92059.0,92058.0,0.28179704]
[1763600729713,0.00179453,92059.0,92058.0,0.23179704]
[1763600729888,0.00179453,92059.0,92058.0,0.28179704]
[1763600730217,0.00179453,92059.0,92058.0,0.23179704]
[1763600730374,0.00179453,92059.0,92058.0,0.28179704]
[1763600730764,0.00179453,92059.0,92058.0,0.23179704]
[1763600731987,0.00179453,92059.0,92058.0,0.28179704]
[1763600732793,0.00179453,92059.0,92058.0,0.42551704]
[1763600733006,0.00179453,92059.0,92058.0,0.42919704]
[1763600733231,0.00179453,92059.0,92058.0,0.37919704]
[1763600733453,0.00179453,92059.0,92058.0,0.42919704]
[1763600735004,0.00179453,92059.0,92058.0,0.43019704]
[1763600736034,0.00179453,92059.0,92058.0,6.33879704]
[1763600736884,0.00179453,92059.0,92058.0,6.27425433]
[1763600737119,0.00179453,92059.0,92058.0,6.27793433]
[1763600738180,0.00179453,92059.0,92058.0,6.32693433]
[1763600738579,0.00179453,92059.0,92058.0,6.27693433]
[1763600739127,0.00179453,92059.0,92058.0,6.27325433]
[1763600739335,0.00179453,92059.0,92058.0,6.32693433]
[1763600739731,0.00179453,92059.0,92058.0,6.27693433]
[1763600740247,0.00179453,92059.0,92058.0,6.32693433]
[1763600740566,0.00179453,92059.0,92058.0,6.27693433]
[1763600740759,0.00179453,92059.0,92058.0,6.32693433]
[1763600740953,0.00179453,92059.0,92058.0,6.27693433]
[1763600741141,0.00179453,92059.0,92058.0,6.32693433]
[1763600743681,0.00179453,92059.0,92058.0,6.27693433]
[1763600743892,0.02209959,92059.0,92058.0,6.32693433]
[1763600744062,0.02209959,92059.0,92058.0,6.32793433]
[1763600745101,0.02209959,92059.0,92058.0,6.27793433]
[1763600745672,0.02209959,92059.0,92058.0,6.32793433]
[1763600746082,0.02209959,92059.0,92058.0,6.27793433]
[1763600746256,0.02209959,92059.0,92058.0,6.32793433]
[1763600746667,0.03733959,92059.0,92058.0,6.057]
[1763600746908,0.04861959,92059.0,92058.0,6.06068]
[1763600747305,0.04861959,92059.0,92058.0,6.27793433]
[1763600747509,0.04861959,92059.0,92058.0,6.05968]
[1763600748094,0.07120959,92059.0,92058.0,6.27693433]
[1763600748678,0.03337959,92059.0,92058.0,6.27693433]
[1763600749741,0.02209959,92059.0,92058.0,6.27693433]
[1763600750477,0.02217086,92059.0,92058.0,6.17953433]
[1763600750670,0.02217086,92059.0,92058.0,6.12953433]
[1763600751918,0.02217086,92059.0,92058.0,6.17953433]
[1763600752385,0.02217086,92059.0,92058.0,6.12953433]
[1763600752596,0.02217086,92059.0,92058.0,6.17953433]
[1763600754233,0.00179453,92059.0,92058.0,6.18053433]
[1763600756835,0.00179453,92059.0,92058.0,6.17953433]
[1763600756953,0.00179453,92059.0,92058.0,6.18053433]
[1763600758872,0.00179453,92059.0,92058.0,6.45353433]
[1763600759121,0.00082273,92070.0,92069.0,0.21722838]